[Event "RUDAR 1 IM 2022"]
[Site "Pozarevac"]
[Date "2022.03.30"]
[Round "7.2"]
[White "Trifunovic, Miroljub"]
[Black "Savitha Shri B"]
[Result "0-1"]
[ECO "D79"]
[WhiteElo "2144"]
[BlackElo "2257"]
[Annotator "NA"]
[PlyCount "64"]
[EventDate "2022.03.27"]
[EventType "tourn"]
[EventCountry "SRB"]
[SourceTitle "playchess.com"]
[Source "ChessBase"]
[SourceQuality "1"]
[TimeControl "40/5400+30:900+30"]

1. d4 {[%emt 0:00:29]} Nf6 {[%emt 0:01:29]} 2. Nf3 {[%emt 0:00:29]} g6 {[%emt 0:00:20]} 3. g3 {[%emt 0:00:38]} Bg7 {[%emt 0:00:57]} 4. Bg2 {[%emt 0:00:12]} c5 {[%emt 0:01:52]} 5. c3 {[%emt 0:07:27]} cxd4 {[%emt 0:01:28]} 6. cxd4 {[%emt 0:00:12]} d5 {[%emt 0:00:11]} 7. Nc3 {[%emt 0:00:22]} Nc6 {[%emt 0:01:25]} 8. Ne5 {[%emt 0:03:37]} O-O {[%emt 0:00:52]} 9. O-O {[%emt 0:00:37]} Bf5 {[%emt 0:08:55]} 10. Nxc6 {[%emt 0:15:22]} bxc6 {[%emt 0:00:07]} 11. Bf4 {[%emt 0:02:47]} Qb6 {[%emt 0:05:09]} 12. Na4 {[%emt 0:04:59]} Qb5 {[%emt 0:05:05]} 13. Rc1 {[%emt 0:05:20]} Nd7 {[%emt 0:02:41]} 14. b3 {[%emt 0:03:13]} Rfe8 {[%emt 0:03:04]} 15. Re1 {[%emt 0:08:45]} e5 {[%emt 0:09:13]} 16. dxe5 {[%emt 0:07:14]} Nxe5 {[%emt 0:00:36]} 17. Rc5 {[%emt 0:08:53]} Qa6 {[%emt 0:02:57]} 18. Qc1 {[%emt 0:08:42]} Bd7 {[%emt 0:05:15]} 19. Rc2 {[%emt 0:02:44]} Bf8 {[%emt 0:06:35]} 20. Bxe5 {[%emt 0:05:18]} Rxe5 {[%emt 0:00:09]} 21. e4 {[%emt 0:00:25]} Rae8 {[%emt 0:14:58]} 22. Qd2 {[%emt 0:07:18]} Bf5 {[%emt 0:04:12]} 23. Rec1 {[%emt 0:02:26]} dxe4 {[%emt 0:01:18]} 24. Bf1 {[%emt 0:00:40]} Qb7 {[%emt 0:00:47]} 25. Rxc6 {[%emt 0:00:22]} e3 {[%emt 0:01:23]} 26. fxe3 {[%emt 0:00:40]} Bh6 {[%emt 0:00:49]} 27. R6c3 {[%emt 0:03:02]} Bxe3+ {[%emt 0:01:00]} 28. Rxe3 {[%emt 0:00:07]} Rxe3 {[%emt 0:00:05]} 29. Qa5 {[%emt 0:00:46]} Qe4 {[%emt 0:01:13]} 30. Qxa7 {[%emt 0:01:03]} Qf3 {[%emt 0:02:01]} 31. Qa5 {[%emt 0:01:15]} Be4 {[%emt 0:00:46]} 32. Qd2 {[%emt 0:00:33]} Qh1+ {[%emt 0:19:38]} 0-1

[Event "RUDAR 1 IM 2022"]
[Site "Pozarevac"]
[Date "2022.03.30"]
[Round "7.3"]
[White "Anishka Vikram"]
[Black "Milanovic, Slavisa"]
[Result "0-1"]
[ECO "E43"]
[WhiteElo "2000"]
[BlackElo "2296"]
[Annotator "NA"]
[PlyCount "86"]
[EventDate "2022.03.27"]
[EventType "tourn"]
[EventCountry "SRB"]
[SourceTitle "playchess.com"]
[Source "ChessBase"]
[SourceQuality "1"]
[TimeControl "40/5400+30:900+30"]

1. d4 {[%emt 0:00:02]} Nf6 {[%emt 0:00:24]} 2. c4 {[%emt 0:00:05]} e6 {[%emt 0:00:06]} 3. Nc3 {[%emt 0:00:06]} Bb4 {[%emt 0:00:12]} 4. e3 {[%emt 0:00:36]} c5 {[%emt 0:01:49]} 5. Bd3 {[%emt 0:01:22]} O-O {[%emt 0:08:30]} 6. Nf3 {[%emt 0:01:33]} b6 {[%emt 0:05:50]} 7. O-O {[%emt 0:03:24]} Bb7 {[%emt 0:00:08]} 8. Re1 {[%emt 0:11:11]} d5 {[%emt 0:08:04]} 9. a3 {[%emt 0:06:30]} cxd4 {[%emt 0:03:43]} 10. exd4 {[%emt 0:04:59]} Bxc3 {[%emt 0:11:15]} 11. bxc3 {[%emt 0:00:15]} dxc4 {[%emt 0:00:05]} 12. Bxc4 {[%emt 0:00:46]} Qc7 {[%emt 0:00:09]} 13. Ne5 {[%emt 0:29:46]} Nbd7 {[%emt 0:00:17]} 14. Qe2 {[%emt 0:05:54]} Rac8 {[%emt 0:06:31]} 15. Ba2 {[%emt 0:13:58]} Qxc3 {[%emt 0:08:49]} 16. Nxd7 {[%emt 0:06:55]} Nxd7 {[%emt 0:00:37]} 17. Bg5 {[%emt 0:01:20]} Qxd4 {[%emt 0:10:16]} 18. Rad1 {[%emt 0:01:17]} Qa4 {[%emt 0:00:11]} 19. Be7 {[%emt 0:03:30]} Rfe8 {[%emt 0:12:31]} 20. Bxe6 {[%emt 0:02:33]} Rxe7 {[%emt 0:00:06]} 21. Bxd7 {[%emt 0:00:07]} Rxe2 {[%emt 0:00:54]} 22. Bxa4 {[%emt 0:00:07]} Rxe1+ {[%emt 0:00:55]} 23. Rxe1 {[%emt 0:00:01]} g6 {[%emt 0:04:49]} 24. Re8+ {[%emt 0:04:19]} Rxe8 {[%emt 0:00:12]} 25. Bxe8 {[%emt 0:00:02]} Kf8 {[%emt 0:00:07]} 26. Ba4 {[%emt 0:00:15]} Ke7 {[%emt 0:00:38]} 27. f4 {[%emt 0:00:33]} Kd6 {[%emt 0:00:57]} 28. Kf2 {[%emt 0:00:27]} Kc5 {[%emt 0:04:07]} 29. Be8 {[%emt 0:01:36]} f5 {[%emt 0:01:36]} 30. g3 {[%emt 0:00:31]} Bc6 {[%emt 0:01:37]} 31. Bf7 {[%emt 0:00:06]} Bd5 {[%emt 0:00:09]} 32. Be8 {[%emt 0:00:08]} b5 {[%emt 0:03:47]} 33. Ke3 {[%emt 0:00:15]} a5 {[%emt 0:00:15]} 34. Kd2 {[%emt 0:01:03]} b4 {[%emt 0:02:35]} 35. axb4+ {[%emt 0:01:02]} axb4 {[%emt 0:00:14]} 36. h4 {[%emt 0:00:28]} Kd4 {[%emt 0:00:37]} 37. h5 {[%emt 0:00:21]} gxh5 {[%emt 0:01:00]} 38. Bxh5 {[%emt 0:00:14]} b3 {[%emt 0:00:13]} 39. Bd1 {[%emt 0:00:35]} b2 {[%emt 0:00:09]} 40. Bc2 {[%emt 0:00:00]} Be4 {[%emt 0:00:00]} 41. Bxe4 {[%emt 0:01:05]} fxe4 {[%emt 0:00:20]} 42. Kc2 {[%emt 0:00:02]} e3 {[%emt 0:00:10]} 43. Kxb2 {[%emt 0:00:03]} e2 {[%emt 0:00:06]} 0-1

[Event "RUDAR 1 IM 2022"]
[Site "Pozarevac"]
[Date "2022.03.30"]
[Round "7.4"]
[White "Bryakin, Mikhail"]
[Black "Bura, Goran"]
[Result "1/2-1/2"]
[ECO "E62"]
[WhiteElo "2481"]
[BlackElo "2185"]
[Annotator "ChessBase"]
[PlyCount "188"]
[EventDate "2022.03.27"]
[EventType "tourn"]
[EventCountry "SRB"]
[SourceTitle "playchess.com"]
[Source "ChessBase"]
[SourceQuality "1"]
[TimeControl "40/5400+30:900+30"]

1. d4 {[%emt 0:00:04]} d6 {[%emt 0:00:18]} 2. Nf3 {[%emt 0:00:12]} g6 {[%emt 0:00:20]} 3. g3 {[%emt 0:00:53]} Nf6 {[%emt 0:00:45]} 4. c4 {[%emt 0:00:19]} Bg7 {[%emt 0:00:25]} 5. Bg2 {[%emt 0:00:10]} O-O {[%emt 0:00:22]} 6. O-O {[%emt 0:00:11]} Nc6 {[%emt 0:01:31]} 7. Nc3 {[%emt 0:00:12]} Bf5 {[%emt 0:00:51]} 8. Re1 {[%emt 0:01:50]} Ne4 {[%emt 0:01:10]} 9. Nh4 {[%emt 0:00:57]} Nxc3 {[%emt 0:01:07]} 10. bxc3 {[%emt 0:00:08]} Bd7 {[%emt 0:00:31]} 11. f4 {[%emt 0:00:56]} Na5 {[%emt 0:05:26]} 12. Qd3 {[%emt 0:03:06]} c5 {[%emt 0:02:55]} 13. Be3 {[%emt 0:21:13]} Rc8 {[%emt 0:07:09]} 14. Rab1 {[%emt 0:09:30]} b6 {[%emt 0:02:26]} 15. d5 {[%emt 0:02:12]} a6 {[%emt 0:02:32]} 16. Bf2 {[%emt 0:05:12]} b5 {[%emt 0:05:57]} 17. cxb5 {[%emt 0:00:24]} Bxb5 {[%emt 0:01:37]} 18. Qc2 {[%emt 0:01:58]} Nc4 {[%emt 0:01:07]} 19. Rbc1 {[%emt 0:00:18]} Qa5 {[%emt 0:04:46]} 20. e4 {[%emt 0:02:15]} Na3 {[%emt 0:02:25]} 21. Qd2 {[%emt 0:02:02]} Nc4 {[%emt 0:00:41]} 22. Qc2 {[%emt 0:00:06]} Rb8 {[%emt 0:05:59]} 23. Nf3 {[%emt 0:02:15]} Na3 {[%emt 0:03:33]} 24. Qd2 {[%emt 0:00:37]} Nc4 {[%emt 0:01:12]} 25. Qc2 {[%emt 0:00:30]} Na3 {[%emt 0:03:58]} 26. Qd2 {[%emt 0:44:49]} Nc4 {[%emt 0:01:13]} 27. Qc2 {[%emt 0:01:07]} Ba4 {[%emt 0:00:35]} 28. Qe2 {[%emt 0:00:26]} Rb2 {[%emt 0:00:08]} 29. Qd3 {[%emt 0:00:32]} Bb5 {[%emt 0:00:48]} 30. a4 {[%emt 0:00:28]} Qxa4 {[%emt 0:01:03]} 31. Qd1 {[%emt 0:00:28]} Qxd1 {[%emt 0:05:43]} 32. Rexd1 {[%emt 0:00:01]} a5 {[%emt 0:00:36]} 33. e5 {[%emt 0:00:19]} a4 {[%emt 0:00:13]} 34. Ne1 {[%emt 0:00:25]} Na5 {[%emt 0:04:57]} 35. Ra1 {[%emt 0:00:27]} Nb3 {[%emt 0:01:59]} 36. Ra3 {[%emt 0:00:01]} dxe5 {[%emt 0:00:53]} 37. c4 {[%emt 0:00:13]} Bxc4 {[%emt 0:02:11]} 38. Rxa4 {[%emt 0:00:02]} Be2 {[%emt 0:00:42]} 39. d6 {[%emt 0:00:30]} exd6 {[%emt 0:03:13]} 40. Rxd6 {[%emt 0:00:00]} exf4 {[%emt 0:00:00]} 41. gxf4 {[%emt 0:01:34]} Nd4 {[%emt 0:10:01]} 42. Ra5 {[%emt 0:06:40]} Nf5 {[%emt 0:04:15]} 43. Rd7 {[%emt 0:01:11]} Bd4 {[%emt 0:00:44]} 44. Bxd4 {[%emt 0:01:17]} cxd4 {[%emt 0:04:29]} 45. Re5 {[%emt 0:04:05]} Rd2 {[%emt 0:03:05]} 46. Bh3 {[%emt 0:02:04]} Nh4 {[%emt 0:00:22]} 47. Ree7 {[%emt 0:00:56]} Bc4 {[%emt 0:03:44]} 48. Re4 {[%emt 0:00:37]} Bb5 {[%emt 0:03:11]} 49. Rdxd4 {[%emt 0:01:53]} Rxd4 {[%emt 0:00:01]} 50. Rxd4 {[%emt 0:00:01]} Re8 {[%emt 0:00:08]} 51. Rd1 {[%emt 0:00:29]} Re3 {[%emt 0:08:42]} 52. Rb1 {[%emt 0:01:31]} Bc6 {[%emt 0:02:06]} 53. Rc1 {[%emt 0:00:18]} Bd5 {[%emt 0:00:36]} 54. Bd7 {[%emt 0:01:03]} Nf3+ {[%emt 0:04:04]} 55. Nxf3 {[%emt 0:00:40]} Rxf3 {[%emt 0:00:15]} 56. f5 {[%emt 0:00:42]} g5 {[%emt 0:00:52]} 57. Rc5 {[%emt 0:00:32]} Be4 {[%emt 0:02:36]} 58. Re5 {[%emt 0:00:01]} Bd3 {[%emt 0:00:21]} 59. Kg2 {[%emt 0:00:39]} Rf4 {[%emt 0:00:26]} 60. Kg3 {[%emt 0:01:09]} Kg7 {[%emt 0:00:23]} 61. Rc5 {[%emt 0:00:43]} h5 {[%emt 0:01:03]} 62. h3 {[%emt 0:00:33]} h4+ {[%emt 0:00:23]} 63. Kh2 {[%emt 0:00:02]} Be4 {[%emt 0:00:28]} 64. Ra5 {[%emt 0:00:27]} Rf2+ {[%emt 0:00:42]} 65. Kg1 {[%emt 0:00:03]} Rf3 {[%emt 0:00:39]} 66. Re5 {[%emt 0:00:20]} Rf4 {[%emt 0:00:07]} 67. Ra5 {[%emt 0:00:19]} Kf6 {[%emt 0:00:10]} 68. Ra6+ {[%emt 0:00:02]} Ke7 {[%emt 0:00:19]} 69. Ra7 {[%emt 0:00:05]} Kd6 {[%emt 0:00:04]} 70. Be8 {[%emt 0:00:16]} f6 {[%emt 0:00:26]} 71. Ra6+ {[%emt 0:00:35]} Ke5 {[%emt 0:00:16]} 72. Bd7 {[%emt 0:00:24]} Bxf5 {[%emt 0:00:54]} 73. Ra5+ {[%emt 0:00:01]} Ke4 {[%emt 0:00:19]} 74. Ra4+ {[%emt 0:01:05]} Ke3 {[%emt 0:00:04]} 75. Ra3+ {[%emt 0:00:03]} Bd3 {[%emt 0:00:38]} 76. Bb5 {[%emt 0:00:28]} Rf1+ {[%emt 0:00:31]} 77. Kg2 {[%emt 0:00:32]} Rf2+ {[%emt 0:00:42]} 78. Kg1 {[%emt 0:00:06]} Rd2 {[%emt 0:00:10]} 79. Bc6 {[%emt 0:00:16]} f5 {[%emt 0:00:31]} 80. Bb5 {[%emt 0:02:00]} Ke4 {[%emt 0:00:59]} 81. Ra4+ {[%emt 0:00:37]} Kf3 {[%emt 0:00:14]} 82. Ra3 {[%emt 0:00:11]} Ke4 {[%emt 0:00:29]} 83. Ra4+ {[%emt 0:00:05]} Ke3 {[%emt 0:00:32]} 84. Ra3 {[%emt 0:00:37]} Ke2 {[%emt 0:00:14]} 85. Bc6 {[%emt 0:01:01]} Rc2 {[%emt 0:01:21]} 86. Bb7 {[%emt 0:00:57]} Rc7 {[%emt 0:01:23]} 87. Bd5 {[%emt 0:00:25]} g4 {[%emt 0:00:33]} 88. hxg4 {[%emt 0:00:20]} fxg4 {[%emt 0:00:09]} 89. Ra4 {[%emt 0:00:21]} Rg7 {[%emt 0:00:28]} 90. Be6 {[%emt 0:00:57]} Kf3 {[%emt 0:00:15]} 91. Ra3 {[%emt 0:00:12]} Ke4 {[%emt 0:00:22]} 92. Ra4+ {[%emt 0:00:01]} Kf3 {[%emt 0:00:25]} 93. Ra3 {[%emt 0:00:01]} Ke2 {[%emt 0:00:44]} 94. Ra4 {[%emt 0:00:06]} Kf3 {[%emt 0:00:41]} 1/2-1/2

[Event "RUDAR 1 IM 2022"]
[Site "Pozarevac"]
[Date "2022.03.31"]
[Round "8.1"]
[White "Acor, Corey"]
[Black "Trifunovic, Miroljub"]
[Result "1-0"]
[ECO "C26"]
[WhiteElo "2326"]
[BlackElo "2144"]
[Annotator "NA"]
[PlyCount "59"]
[EventDate "2022.03.27"]
[EventType "tourn"]
[EventCountry "SRB"]
[SourceTitle "playchess.com"]
[Source "ChessBase"]
[SourceQuality "1"]
[TimeControl "40/5400+30:900+30"]

1. e4 {[%emt 0:02:09]} e5 {[%emt 0:02:03]} 2. Nc3 {[%emt 0:00:16]} Nf6 {[%emt 0:02:05]} 3. g3 {[%emt 0:00:21]} d5 {[%emt 0:03:58]} 4. exd5 {[%emt 0:00:40]} Nxd5 {[%emt 0:00:23]} 5. Bg2 {[%emt 0:00:31]} Nxc3 {[%emt 0:04:18]} 6. bxc3 {[%emt 0:00:30]} Bd6 {[%emt 0:01:14]} 7. Nf3 {[%emt 0:01:49]} O-O {[%emt 0:01:58]} 8. O-O {[%emt 0:00:19]} c6 {[%emt 0:02:29]} 9. d4 {[%emt 0:01:23]} exd4 {[%emt 0:21:22]} 10. cxd4 {[%emt 0:00:29]} Nd7 {[%emt 0:11:47]} 11. c4 {[%emt 0:05:09]} Nf6 {[%emt 0:09:59]} 12. Qc2 {[%emt 0:06:52]} Re8 {[%emt 0:05:52]} 13. Bb2 {[%emt 0:02:30]} h6 {[%emt 0:08:50]} 14. Rfe1 {[%emt 0:05:33]} Rxe1+ {[%emt 0:04:17]} 15. Rxe1 {[%emt 0:00:40]} Be6 {[%emt 0:00:32]} 16. Ne5 {[%emt 0:17:11]} Qa5 {[%emt 0:05:22]} 17. Bc3 {[%emt 0:30:23]} Qc7 {[%emt 0:05:09]} 18. f4 {[%emt 0:00:57]} Qc8 {[%emt 0:01:01]} 19. a4 {[%emt 0:04:45]} Rb8 {[%emt 0:01:52]} 20. a5 {[%emt 0:00:24]} Ne8 {[%emt 0:00:50]} 21. Qe2 {[%emt 0:03:43]} Nc7 {[%emt 0:00:58]} 22. Be4 {[%emt 0:00:19]} Bf5 {[%emt 0:01:53]} 23. Qh5 {[%emt 0:01:30]} Bxe4 {[%emt 0:01:05]} 24. Qxf7+ {[%emt 0:02:12]} Kh7 {[%emt 0:00:26]} 25. Rxe4 {[%emt 0:00:18]} Qe8 {[%emt 0:00:16]} 26. Qf5+ {[%emt 0:01:26]} g6 {[%emt 0:00:11]} 27. Qf6 {[%emt 0:00:56]} Be7 {[%emt 0:01:06]} 28. Qxg6+ {[%emt 0:02:00]} Qxg6 {[%emt 0:00:08]} 29. Nxg6 {[%emt 0:00:04]} Bf6 {[%emt 0:00:18]} 30. Ne5 {[%emt 0:00:42]} 1-0

[Event "RUDAR 1 IM 2022"]
[Site "Pozarevac"]
[Date "2022.03.31"]
[Round "8.3"]
[White "Savitha Shri B"]
[Black "Dudukovic, Nikola"]
[Result "1/2-1/2"]
[ECO "D66"]
[WhiteElo "2257"]
[BlackElo "2362"]
[Annotator "NA"]
[PlyCount "51"]
[EventDate "2022.03.27"]
[EventType "tourn"]
[EventCountry "SRB"]
[SourceTitle "playchess.com"]
[Source "ChessBase"]
[SourceQuality "1"]
[TimeControl "40/5400+30:900+30"]

1. d4 {[%emt 0:01:25]} Nf6 {[%emt 0:00:23]} 2. c4 {[%emt 0:00:18]} e6 {[%emt 0:02:32]} 3. Nc3 {[%emt 0:00:25]} d5 {[%emt 0:00:28]} 4. Nf3 {[%emt 0:00:21]} Be7 {[%emt 0:00:13]} 5. Bg5 {[%emt 0:00:15]} O-O {[%emt 0:00:57]} 6. e3 {[%emt 0:00:11]} Nbd7 {[%emt 0:06:41]} 7. Bd3 {[%emt 0:01:45]} c6 {[%emt 0:02:44]} 8. O-O {[%emt 0:00:07]} h6 {[%emt 0:01:14]} 9. Bh4 {[%emt 0:01:31]} b6 {[%emt 0:04:16]} 10. Rc1 {[%emt 0:10:26]} Bb7 {[%emt 0:00:50]} 11. Re1 {[%emt 0:12:01]} a6 {[%emt 0:07:14]} 12. cxd5 {[%emt 0:04:05]} cxd5 {[%emt 0:01:04]} 13. Bb1 {[%emt 0:01:59]} b5 {[%emt 0:02:55]} 14. Ne5 {[%emt 0:16:43]} g6 {[%emt 0:23:35]} 15. h3 {[%emt 0:19:06]} Re8 {[%emt 0:07:55]} 16. Ne2 {[%emt 0:01:31]} Rc8 {[%emt 0:07:22]} 17. Rxc8 {[%emt 0:01:07]} Qxc8 {[%emt 0:00:05]} 18. Qc1 {[%emt 0:02:36]} Nb6 {[%emt 0:05:45]} 19. Bd3 {[%emt 0:03:52]} g5 {[%emt 0:03:58]} 20. Bg3 {[%emt 0:00:37]} Qxc1 {[%emt 0:00:47]} 21. Rxc1 {[%emt 0:00:26]} Rc8 {[%emt 0:00:07]} 22. Rxc8+ {[%emt 0:01:41]} Bxc8 {[%emt 0:01:59]} 23. b3 {[%emt 0:04:43]} Bb7 {[%emt 0:01:12]} 24. f3 {[%emt 0:02:15]} Nfd7 {[%emt 0:05:22]} 25. Nxd7 {[%emt 0:02:56]} Nxd7 {[%emt 0:00:05]} 26. Bc7 {[%emt 0:00:17]} 1/2-1/2

[Event "RUDAR 1 IM 2022"]
[Site "Pozarevac"]
[Date "2022.03.31"]
[Round "8.4"]
[White "Spasic, Petar"]
[Black "Anishka Vikram"]
[Result "1-0"]
[ECO "B50"]
[WhiteElo "2334"]
[BlackElo "2000"]
[Annotator "NA"]
[PlyCount "56"]
[EventDate "2022.03.27"]
[EventType "tourn"]
[EventCountry "SRB"]
[SourceTitle "playchess.com"]
[Source "ChessBase"]
[SourceQuality "1"]
[TimeControl "40/5400+30:900+30"]

1. e4 {[%emt 0:00:13]} c5 {[%emt 0:00:07]} 2. Nf3 {[%emt 0:00:05]} d6 {[%emt 0:00:07]} 3. Bd3 {[%emt 0:00:07]} Nc6 {[%emt 0:02:57]} 4. c3 {[%emt 0:00:20]} g6 {[%emt 0:05:00]} 5. h3 {[%emt 0:01:00]} Bg7 {[%emt 0:05:49]} 6. O-O {[%emt 0:00:11]} Nf6 {[%emt 0:07:45]} 7. Bc2 {[%emt 0:01:02]} O-O {[%emt 0:03:42]} 8. Re1 {[%emt 0:02:00]} b5 {[%emt 0:17:14]} 9. d4 {[%emt 0:00:33]} Bb7 {[%emt 0:01:26]} 10. a3 {[%emt 0:03:15]} a5 {[%emt 0:03:15]} 11. Qe2 {[%emt 0:04:40]} Ba6 {[%emt 0:07:38]} 12. e5 {[%emt 0:04:27]} b4 {[%emt 0:05:45]} 13. c4 {[%emt 0:08:25]} Nd7 {[%emt 0:06:28]} 14. Be4 {[%emt 0:02:48]} Rc8 {[%emt 0:06:19]} 15. e6 {[%emt 0:08:00]} Nb6 {[%emt 0:06:13]} 16. exf7+ {[%emt 0:01:19]} Kh8 {[%emt 0:06:54]} 17. Ng5 {[%emt 0:07:50]} Bxc4 {[%emt 0:08:31]} 18. Qg4 {[%emt 0:01:22]} Bxf7 {[%emt 0:00:27]} 19. Qh4 {[%emt 0:00:39]} h6 {[%emt 0:00:21]} 20. Bxg6 {[%emt 0:02:25]} Bxg6 {[%emt 0:02:17]} 21. Ne6 {[%emt 0:00:07]} Qd7 {[%emt 0:00:14]} 22. Bxh6 {[%emt 0:00:19]} Rf5 {[%emt 0:01:03]} 23. Bxg7+ {[%emt 0:00:36]} Kg8 {[%emt 0:00:01]} 24. g4 {[%emt 0:01:04]} Rd5 {[%emt 0:00:40]} 25. Qh6 {[%emt 0:00:58]} Kf7 {[%emt 0:01:50]} 26. Re3 {[%emt 0:02:50]} Nxd4 {[%emt 0:00:35]} 27. Bxd4 {[%emt 0:00:13]} cxd4 {[%emt 0:00:27]} 28. Qg7+ {[%emt 0:00:06]} Ke8 {[%emt 0:00:59]} 1-0

[Event "RUDAR 1 IM 2022"]
[Site "Pozarevac"]
[Date "2022.03.31"]
[Round "8.5"]
[White "Andreev, Konstantin"]
[Black "Bura, Goran"]
[Result "0-1"]
[ECO "B28"]
[WhiteElo "2238"]
[BlackElo "2185"]
[Annotator "NA"]
[PlyCount "64"]
[EventDate "2022.03.27"]
[EventType "tourn"]
[EventCountry "SRB"]
[SourceTitle "playchess.com"]
[Source "ChessBase"]
[SourceQuality "1"]
[TimeControl "40/5400+30:900+30"]

1. e4 {[%emt 0:00:04]} c5 {[%emt 0:00:13]} 2. Nf3 {[%emt 0:00:06]} a6 {[%emt 0:00:06]} 3. c4 {[%emt 0:00:07]} Nc6 {[%emt 0:00:50]} 4. d4 {[%emt 0:00:47]} cxd4 {[%emt 0:00:06]} 5. Nxd4 {[%emt 0:00:03]} e5 {[%emt 0:00:03]} 6. Nc2 {[%emt 0:07:12]} Bc5 {[%emt 0:00:42]} 7. Nc3 {[%emt 0:07:09]} d6 {[%emt 0:00:38]} 8. Be2 {[%emt 0:05:29]} Nge7 {[%emt 0:01:01]} 9. Be3 {[%emt 0:04:40]} Bxe3 {[%emt 0:01:53]} 10. fxe3 {[%emt 0:01:28]} O-O {[%emt 0:01:21]} 11. Qd2 {[%emt 0:04:00]} Be6 {[%emt 0:03:59]} 12. Rd1 {[%emt 0:05:29]} Qb6 {[%emt 0:19:45]} 13. O-O {[%emt 0:08:10]} Rfd8 {[%emt 0:04:57]} 14. Kh1 {[%emt 0:08:27]} Rac8 {[%emt 1:01:56]} 15. b3 {[%emt 0:03:00]} Qa7 {[%emt 0:00:00]} 16. Ne1 {[%emt 0:02:24]} Rf8 {[%emt 0:00:00]} 17. Nf3 {[%emt 0:01:07]} Rcd8 {[%emt 0:00:00]} 18. Nh4 {[%emt 0:03:08]} g6 {[%emt 0:00:00]} 19. Bd3 {[%emt 0:04:17]} f6 {[%emt 0:00:00]} 20. Bb1 {[%emt 0:00:47]} Qc5 {[%emt 0:00:00]} 21. Rc1 {[%emt 0:05:14]} Qa5 {[%emt 0:00:00]} 22. Qb2 {[%emt 0:01:28]} Qc5 {[%emt 0:00:00]} 23. Nd5 {[%emt 0:01:30]} Kg7 {[%emt 0:00:00]} 24. b4 {[%emt 0:08:43]} Qa7 {[%emt 0:00:00]} 25. b5 {[%emt 0:00:33]} axb5 {[%emt 0:00:00]} 26. cxb5 {[%emt 0:00:13]} Bxd5 {[%emt 0:00:00]} 27. exd5 {[%emt 0:00:07]} Nb8 {[%emt 0:00:00]} 28. Rc7 {[%emt 0:09:30]} Rd7 {[%emt 0:00:00]} 29. b6 {[%emt 0:00:30]} Qa6 {[%emt 0:00:00]} 30. Rfc1 {[%emt 0:01:26]} Nxd5 {[%emt 0:00:00]} 31. Qc2 {[%emt 0:02:33]} f5 {[%emt 0:00:00]} 32. Qd2 {[%emt 0:00:33]} Nxc7 {[%emt 0:00:00]} 0-1

[Event "RUDAR 1 IM 2022"]
[Site "Pozarevac"]
[Date "2022.04.01"]
[Round "9.1"]
[White "Dudukovic, Nikola"]
[Black "Acor, Corey"]
[Result "1/2-1/2"]
[ECO "E05"]
[WhiteElo "2362"]
[BlackElo "2326"]
[Annotator "NA"]
[PlyCount "59"]
[EventDate "2022.03.27"]
[EventType "tourn"]
[EventCountry "SRB"]
[SourceTitle "playchess.com"]
[Source "ChessBase"]
[SourceQuality "1"]
[TimeControl "40/5400+30:900+30"]

1. d4 {[%emt 0:02:10]} Nf6 {[%emt 0:00:25]} 2. c4 {[%emt 0:00:07]} e6 {[%emt 0:02:26]} 3. Nf3 {[%emt 0:00:17]} d5 {[%emt 0:00:18]} 4. g3 {[%emt 0:00:07]} Be7 {[%emt 0:00:06]} 5. Bg2 {[%emt 0:00:06]} O-O {[%emt 0:00:05]} 6. O-O {[%emt 0:00:05]} dxc4 {[%emt 0:00:04]} 7. Na3 {[%emt 0:00:43]} c5 {[%emt 0:04:10]} 8. Nxc4 {[%emt 0:02:24]} Nc6 {[%emt 0:02:42]} 9. dxc5 {[%emt 0:03:06]} Bxc5 {[%emt 0:00:36]} 10. Nfe5 {[%emt 0:07:08]} Nxe5 {[%emt 0:05:38]} 11. Nxe5 {[%emt 0:00:09]} Qe7 {[%emt 0:01:25]} 12. Qb3 {[%emt 0:07:56]} Rd8 {[%emt 0:03:01]} 13. Be3 {[%emt 0:09:51]} Bxe3 {[%emt 0:02:59]} 14. Qxe3 {[%emt 0:08:04]} Nd5 {[%emt 0:16:34]} 15. Qb3 {[%emt 0:01:56]} Qc7 {[%emt 0:14:09]} 16. Nd3 {[%emt 0:04:42]} b6 {[%emt 0:17:48]} 17. Rac1 {[%emt 0:09:17]} Qe7 {[%emt 0:01:33]} 18. Nb4 {[%emt 0:04:18]} Bb7 {[%emt 0:00:28]} 19. Nc6 {[%emt 0:00:22]} Bxc6 {[%emt 0:00:06]} 20. Rxc6 {[%emt 0:00:05]} Rd7 {[%emt 0:02:02]} 21. Rfc1 {[%emt 0:04:34]} Rad8 {[%emt 0:00:24]} 22. Rc8 {[%emt 0:07:13]} g6 {[%emt 0:04:27]} 23. Bxd5 {[%emt 0:12:55]} Rxd5 {[%emt 0:00:35]} 24. R1c7 {[%emt 0:00:23]} R5d7 {[%emt 0:01:50]} 25. Qc3 {[%emt 0:00:39]} Rxc7 {[%emt 0:02:07]} 26. Rxc7 {[%emt 0:00:18]} Rd7 {[%emt 0:00:08]} 27. Rc8+ {[%emt 0:02:22]} Rd8 {[%emt 0:00:06]} 28. Rc4 {[%emt 0:00:25]} Qd6 {[%emt 0:05:07]} 29. e4 {[%emt 0:00:45]} Qd3 {[%emt 0:02:42]} 30. Qxd3 {[%emt 0:00:57]} 1/2-1/2